fUST/lending_fUST_20250727
["ID","MTS","AMOUNT","RATE_DAILY","PERIOD"]
[375206359,1753585839539,-607.90989314,0.00019178,2]
[375206360,1753585839548,-460.0,0.00019178,2]
[375206361,1753585839559,-460.0,0.00019178,2]
[375206362,1753585839569,-460.0,0.00019178,2]
[375206363,1753585839579,-460.0,0.00019178,2]
[375206364,1753585839588,-460.0,0.00019178,2]
[375206365,1753585839598,-460.0,0.00019178,2]
[375206366,1753585839608,-460.0,0.00019178,2]
[375206367,1753585839618,-460.0,0.00019178,2]
[375206368,1753585839628,-466.47,0.00019178,2]
[375206369,1753585839639,-460.0,0.00019178,2]
[375206370,1753585839650,-460.0,0.00019178,2]
[375206371,1753585839661,-460.0,0.00019178,2]
[375206372,1753585839670,-460.0,0.00019178,2]
[375206373,1753585839680,-460.0,0.00019178,2]
[375206374,1753585839689,-558.75,0.00019178,2]
[375206375,1753585839698,-460.0,0.00019178,2]
[375206376,1753585839708,-460.0,0.00019178,2]
[375206377,1753585839717,-460.0,0.00019178,2]
[375206378,1753585839727,-461.75798994,0.00019178,2]
[375206379,1753585839736,-460.0,0.00019178,2]
[375206380,1753585839745,-460.0,0.00019178,2]
[375206381,1753585839754,-460.0,0.00019178,2]
[375206382,1753585839764,-460.0,0.00019178,2]
[375206383,1753585839773,-467.72454961,0.00019178,2]
[375206384,1753585839782,-460.0,0.00019178,2]
[375206385,1753585839791,-460.0,0.00019178,2]
[375206386,1753585839800,-460.0,0.00019178,2]
[375206387,1753585839810,-460.0,0.00019178,2]
[375206388,1753585839820,-460.0,0.00019178,2]
[375206389,1753585839829,-460.0,0.00019178,2]
[375206390,1753585839839,-460.0,0.00019178,2]
[375206391,1753585839848,-460.0,0.00019178,2]
[375206392,1753585839857,-460.0,0.00019178,2]
[375206393,1753585839869,-460.0,0.00019178,2]
[375206394,1753585839880,-460.0,0.00019178,2]
[375206395,1753585839891,-460.0,0.00019178,2]
[375206396,1753585839901,-460.0,0.00019178,2]
[375206397,1753585839912,-460.0,0.00019178,2]
[375206398,1753585839921,-460.0,0.00019178,2]
[375206399,1753585839933,-455.0,0.00019178,2]
[375206400,1753585839943,-460.0,0.00019178,2]
[375206401,1753585839955,-460.4582411,0.00019178,2]
[375206402,1753585839965,-460.0,0.00019178,2]
[375206403,1753585839976,-649.59,0.00019178,2]
[375206404,1753585839986,-460.0,0.00019178,2]
[375206405,1753585839995,-460.0,0.00019178,2]
[375206406,1753585840005,-460.0,0.00019178,2]
[375206407,1753585840015,-460.0,0.00019178,2]
[375206408,1753585840024,-461.06791848,0.00019178,2]
[375206409,1753585840033,-560.0,0.00019178,2]
[375206410,1753585840043,-723.02,0.00019178,2]
[375206411,1753585840052,-460.0,0.00019178,2]
[375206412,1753585840062,-460.0,0.00019178,2]
[375206413,1753585840072,-460.0,0.00019178,2]
[375206414,1753585840084,-460.0,0.00019178,2]
[375206416,1753585840093,-460.0,0.00019178,2]
[375206417,1753585840102,-460.0,0.00019178,2]
[375206418,1753585840111,-460.0,0.00019178,2]
[375206419,1753585840120,-678.43,0.00019178,2]
[375206421,1753585840130,-460.0,0.00019178,2]
[375206422,1753585840140,-460.0,0.00019178,2]
[375206423,1753585840150,-460.0,0.00019178,2]
[375206424,1753585840159,-460.0,0.00019178,2]
[375206425,1753585840169,-460.0,0.00019178,2]
[375206426,1753585840179,-500.0,0.00019178,2]
[375206427,1753585840188,-460.0,0.00019178,2]
[375206428,1753585840198,-460.0,0.00019178,2]
[375206429,1753585840208,-460.0,0.00019178,2]
[375206430,1753585840218,-463.28938822,0.00019178,2]
[375206431,1753585840228,-460.0,0.00019178,2]
[375206432,1753585840237,-462.52739656,0.00019178,2]
[375206433,1753585840247,-460.0,0.00019178,2]
[375206435,1753585840256,-462.78909405,0.00019178,2]
[375206437,1753585840266,-463.292453,0.00019178,2]
[375206439,1753585840276,-461.81681662,0.00019178,2]
[375206440,1753585840285,-460.0,0.00019178,2]
[375206441,1753585840294,-460.0,0.00019178,2]
[375206442,1753585840303,-460.0,0.00019178,2]
[375206443,1753585840312,-463.99589091,0.00019178,2]
[375206444,1753585840322,-460.0,0.00019178,2]
[375206445,1753585840332,-460.0,0.00019178,2]
[375206446,1753585840342,-460.0,0.00019178,2]
[375206447,1753585840352,-460.0,0.00019178,2]
[375206448,1753585840361,-460.0,0.00019178,2]
[375206449,1753585840372,-461.36130902,0.00019178,2]
[375206450,1753585840381,-460.0,0.00019178,2]
[375206451,1753585840391,-460.0,0.00019178,2]
[375206452,1753585840399,-460.0,0.00019178,2]
[375206453,1753585840409,-463.29176298,0.00019178,2]
[375206454,1753585840420,-460.0,0.00019178,2]
[375206455,1753585840432,-462.38428029,0.00019178,2]
[375206456,1753585840442,-462.68468689,0.00019178,2]
[375206457,1753585840452,-460.0,0.00019178,2]
[375206459,1753585840462,-3087.7,0.00019178,2]
[375206460,1753585840472,-205.72881718,0.00019178,2]
[375206461,1753585840482,-460.0,0.00019178,2]
[375206462,1753585840491,-460.0,0.00019178,2]
[375206463,1753585840501,-460.0,0.00019178,2]
[375206464,1753585840513,-460.0,0.00019178,2]
[375206465,1753585840529,-460.0,0.00019178,2]
[375206466,1753585840543,-460.0,0.00019178,2]
[375206467,1753585840557,-458.03369894,0.00019178,2]
[375206468,1753585840570,-460.0,0.00019178,2]
[375206469,1753585840581,-468.9976689,0.00019178,2]
[375206470,1753585840591,-460.0,0.00019178,2]
[375206471,1753585840604,-460.0,0.00019178,2]
[375206472,1753585840616,-460.0,0.00019178,2]
[375206473,1753585840629,-464.76466838,0.00019178,2]
[375206474,1753585840641,-638.57,0.00019178,2]
[375206475,1753585840653,-460.0,0.00019178,2]
[375206476,1753585840665,-463.42490409,0.00019178,2]
[375206477,1753585840676,-451.0850662,0.00019178,2]
[375206478,1753585840689,-460.0,0.00019178,2]
[375206479,1753585840703,-504.77,0.00019178,2]
[375206480,1753585840717,-463.41794414,0.00019178,2]
[375206481,1753585840729,-1104.21,0.00019178,2]
[375206482,1753585840740,-460.0,0.00019178,2]
[375206483,1753585840752,-460.0,0.00019178,2]
[375206484,1753585840764,-460.0,0.00019178,2]
[375206485,1753585840776,-460.0,0.00019178,2]
[375206486,1753585840788,-460.0,0.00019178,2]
[375206487,1753585840800,-460.0,0.00019178,2]
[375206488,1753585840812,-459.4658057,0.00019178,2]
[375206489,1753585840824,-460.0,0.00019178,2]
[375206490,1753585840837,-153.73573547,0.00019178,2]
[375206491,1753585840847,-460.0,0.00019178,2]
[375206492,1753585840858,-460.0,0.00019178,2]
[375206493,1753585840868,-1669.01,0.00019178,2]
[375206494,1753585840881,-460.0,0.00019178,2]
[375206495,1753585840893,-460.0,0.00019178,2]
[375206496,1753585840905,-460.0,0.00019178,2]
[375206497,1753585840917,-465.63202682,0.00019178,2]
[375206498,1753585840930,-460.0,0.00019178,2]
[375206499,1753585840943,-460.0,0.00019178,2]
[375206500,1753585840959,-466.08103169,0.00019178,2]
[375206501,1753585840971,-460.0,0.00019178,2]
[375206502,1753585840984,-460.0,0.00019178,2]
[375206503,1753585840997,-461.18032094,0.00019178,2]
[375206504,1753585841011,-460.0,0.00019178,2]
[375206505,1753585841021,-460.0,0.00019178,2]
[375206506,1753585841031,-462.12707934,0.00019178,2]
[375206507,1753585841042,-460.0,0.00019178,2]
[375206508,1753585841052,-461.57836694,0.00019178,2]
[375206509,1753585841063,-461.99449265,0.00019178,2]
[375206510,1753585841076,-460.0,0.00019178,2]
[375206511,1753585841090,-460.0,0.00019178,2]
[375206512,1753585841101,-460.0,0.00019178,2]
[375206513,1753585841114,-510.26187731,0.00019178,2]
[375206514,1753585841124,-460.0,0.00019178,2]
[375206515,1753585841135,-460.0,0.00019178,2]
[375206516,1753585841147,-460.0,0.00019178,2]
[375206517,1753585841158,-460.0,0.00019178,2]
[375206518,1753585841171,-460.0,0.00019178,2]
[375206519,1753585841182,-460.0,0.00019178,2]
[375206520,1753585841192,-460.0,0.00019178,2]
[375206521,1753585841204,-1530.09,0.00019178,2]
[375206522,1753585841216,-460.0,0.00019178,2]
[375206523,1753585841227,-460.0,0.00019178,2]
[375206524,1753585841239,-460.0,0.00019178,2]
[375206525,1753585841250,-500.0,0.00019178,2]
[375206526,1753585841261,-489.58,0.00019178,2]
[375206527,1753585841272,-460.0,0.00019178,2]
[375206528,1753585841283,-532.61776725,0.00019178,2]
[375206529,1753585841295,-460.0,0.00019178,2]
[375206530,1753585841308,-460.0,0.00019178,2]
[375206531,1753585841319,-460.0,0.00019178,2]
[375206532,1753585841330,-521.36204303,0.00019178,2]
[375206533,1753585841341,-2196.33,0.00019178,2]
[375206534,1753585841353,-460.0,0.00019178,2]
[375206535,1753585841365,-737.36,0.00019178,2]
[375206536,1753585841377,-805.96,0.00019178,2]
[375206537,1753585841387,-2999.41,0.00019178,2]
[375206538,1753585841398,-460.0,0.00019178,2]
[375206539,1753585841408,-4733.4,0.00019178,2]
[375206540,1753585841419,-468.79921979,0.00019178,2]
[375206541,1753585841430,-460.0,0.00019178,2]
[375206542,1753585841440,-460.0,0.00019178,2]
[375206543,1753585841450,-530.06727711,0.00019178,2]
[375206544,1753585841458,-460.0,0.00019178,2]
[375206545,1753585841467,-191.72223723,0.00019178,2]
[375206546,1753585841476,-1210.32,0.00019178,2]
[375206547,1753585841483,-460.0,0.00019178,2]
[375206548,1753585841493,-460.0,0.00019178,2]
[375206549,1753585841502,-954.16,0.00019178,2]
[375206550,1753585841511,-484.95,0.00019178,2]
[375206551,1753585841519,-462.94500452,0.00019178,2]
[375206552,1753585841527,-460.0,0.00019178,2]
[375206553,1753585841536,-460.0,0.00019178,2]
[375206554,1753585841544,-787.14,0.00019178,2]
[375206555,1753585841552,-460.0,0.00019178,2]
[375206556,1753585841561,-460.0,0.00019178,2]
[375206557,1753585841570,-461.67633156,0.00019178,2]
[375206558,1753585841580,-575.17,0.00019178,2]
[375206559,1753585841600,-460.0,0.00019178,2]
[375206560,1753585841614,-460.0,0.00019178,2]
[375206561,1753585841628,-1569.82,0.00019178,2]
[375206562,1753585841641,-460.0,0.00019178,2]
[375206563,1753585841655,-460.0,0.00019178,2]
[375206564,1753585841668,-464.49889106,0.00019178,2]
[375206565,1753585841680,-460.0,0.00019178,2]
[375206566,1753585841693,-460.0,0.00019178,2]
[375206567,1753585841705,-734.37,0.00019178,2]
[375206568,1753585841717,-460.0,0.00019178,2]
[375206569,1753585841728,-460.0,0.00019178,2]
[375206570,1753585841740,-460.0,0.00019178,2]
[375206571,1753585841752,-460.0,0.00019178,2]
[375206572,1753585841764,-460.0,0.00019178,2]
[375206573,1753585841776,-460.0,0.00019178,2]
[375206574,1753585841787,-607.66335667,0.00019178,2]
[375206575,1753585841799,-460.9727575,0.00019178,2]
[375206576,1753585841811,-473.6782629,0.00019178,2]
[375206577,1753585841822,-460.0,0.00019178,2]
[375206578,1753585841835,-460.0,0.00019178,2]
[375206579,1753585841846,-461.00151173,0.00019178,2]
[375206580,1753585841857,-460.0,0.00019178,2]
[375206581,1753585841869,-1236.04,0.00019178,2]
[375206582,1753585841881,-516.98,0.00019178,2]
[375206583,1753585841892,-460.0,0.00019178,2]
[375206584,1753585841904,-464.95798481,0.00019178,2]
[375206585,1753585841915,-480.11,0.00019178,2]
[375206586,1753585841927,-460.0,0.00019178,2]
[375206587,1753585841938,-1693.74,0.00019178,2]
[375206588,1753585841949,-460.0,0.00019178,2]
[375206589,1753585841962,-460.0,0.00019178,2]
[375206590,1753585841974,-460.0,0.00019178,2]
[375206591,1753585841985,-460.0,0.00019178,2]
[375206592,1753585841996,-1149.26,0.00019178,2]
[375206593,1753585842179,-460.0,0.00019178,2]
[375206594,1753585842191,-460.0,0.00019178,2]
[375206595,1753585842201,-460.0,0.00019178,2]
[375206596,1753585842211,-487.79,0.00019178,2]
[375206597,1753585842226,-460.0,0.00019178,2]
[375206598,1753585842236,-460.0,0.00019178,2]
[375206599,1753585842247,-460.0,0.00019178,2]
[375206600,1753585842256,-2674.55,0.00019178,2]
[375206601,1753585842266,-500.0,0.00019178,2]
[375206602,1753585842277,-460.0,0.00019178,2]
[375206603,1753585842286,-460.0,0.00019178,2]
[375206604,1753585842295,-460.0,0.00019178,2]
[375206605,1753585842306,-460.0,0.00019178,2]
[375206606,1753585842316,-460.0,0.00019178,2]
[375206607,1753585842326,-568.35,0.00019178,2]
[375206608,1753585842336,-280.62606963,0.00019178,2]
[375206609,1753585842345,-460.0,0.00019178,2]
[375206610,1753585842354,-518.03,0.00019178,2]
[375206611,1753585842363,-500.0,0.00019178,2]
[375206612,1753585842373,-500.0,0.00019178,2]
[375206613,1753585842382,-460.0,0.00019178,2]
[375206614,1753585842393,-510.22511618,0.00019178,2]
[375206615,1753585842403,-460.0,0.00019178,2]
[375206616,1753585842414,-460.0,0.00019178,2]
[375206617,1753585842423,-466.54134113,0.00019178,2]
[375206618,1753585842433,-460.0,0.00019178,2]
[375206619,1753585842444,-460.0,0.00019178,2]
[375206620,1753585842456,-460.0,0.00019178,2]
[375206621,1753585842466,-460.0,0.00019178,2]
[375206622,1753585842477,-460.0,0.00019178,2]
[375206623,1753585842487,-550.99,0.00019178,2]
[375206624,1753585842496,-460.29616893,0.00019178,2]
[375206625,1753585842505,-460.64266467,0.00019178,2]
[375206626,1753585842516,-460.0,0.00019178,2]
[375206627,1753585842526,-476.13,0.00019178,2]
[375206628,1753585842536,-460.0,0.00019178,2]
[375206629,1753585842547,-1553.97,0.00019178,2]
[375206630,1753585842556,-687.76,0.00019178,2]
[375206631,1753585842566,-460.0,0.00019178,2]
[375206632,1753585842576,-460.0,0.00019178,2]
[375206633,1753585842589,-321.29593264,0.00019178,2]
[375206634,1753585842598,-460.0,0.00019178,2]
[375206635,1753585842608,-460.0,0.00019178,2]
[375206636,1753585842618,-509.1,0.00019178,2]
[375206637,1753585842627,-460.0,0.00019178,2]
[375206638,1753585842638,-460.0,0.00019178,2]
[375206639,1753585842648,-595.16488415,0.00019178,2]
[375206640,1753585842658,-466.35253391,0.00019178,2]
[375206641,1753585842669,-492.35,0.00019178,2]
[375206642,1753585842681,-460.0,0.00019178,2]
[375206643,1753585842691,-460.0,0.00019178,2]
[375206644,1753585842702,-460.0,0.00019178,2]
[375206645,1753585842713,-460.0,0.00019178,2]
[375206646,1753585842721,-460.0,0.00019178,2]
[375206647,1753585842729,-500.02994638,0.00019178,2]
[375206648,1753585842738,-500.0,0.00019226,2]
[375206649,1753585842747,-411.20628376,0.00019226,2]
[375206650,1753585842757,-4177.2980406,0.00019252,2]
[375206651,1753585842767,-4041.94279069,0.00019273,2]
[375206652,1753585842778,-161.23763111,0.00019352,2]
[375206653,1753585842788,-70459.62326627,0.00019352,2]
[375206654,1753585842912,-233400.00000001,0.00019352,2]
[375206655,1753585842933,-59883.74820738,0.00019352,2]
[375206656,1753585842944,-501.22848922,0.00019373,2]
[375206657,1753585842955,-500.0,0.00019373,2]
[375206659,1753585842967,-460.0,0.00019452,2]
[375206660,1753585842977,-460.0,0.00019452,2]
[375206661,1753585842986,-268.59766604,0.00019452,2]
[375206662,1753585842995,-460.0,0.00019452,2]
[375206663,1753585843006,-460.0,0.00019452,2]
[375206665,1753585843016,-462.27209837,0.00019452,2]
[375206667,1753585843026,-293.82318843,0.00019452,2]
[375206668,1753585843035,-607.93348597,0.00019452,2]
[375206669,1753585843045,-460.0,0.00019452,2]
[375206670,1753585843054,-460.0,0.00019452,2]
[375206671,1753585843064,-285.10075726,0.00019452,2]
[375206672,1753585843074,-460.0,0.00019452,2]
[375206673,1753585843083,-460.0,0.00019452,2]
[375206674,1753585843094,-460.0,0.00019452,2]
[375206675,1753585843103,-522.73120998,0.00019452,2]
[375206676,1753585843112,-177.20076303,0.00019452,2]
[375206677,1753585843122,-460.0,0.00019452,2]
[375206678,1753585843131,-460.0,0.00019452,2]
[375206679,1753585843141,-460.0,0.00019452,2]
[375206680,1753585843150,-460.0,0.00019452,2]
[375206681,1753585843159,-508.42753486,0.00019452,2]
[375206682,1753585843169,-460.0,0.00019452,2]
[375206683,1753585843178,-460.0,0.00019452,2]
[375206684,1753585843188,-462.22411371,0.00019452,2]
[375206685,1753585843198,-460.0,0.00019452,2]
[375206686,1753585843208,-460.0,0.00019452,2]
[375206687,1753585843217,-460.0,0.00019452,2]
[375206688,1753585843227,-460.0,0.00019452,2]
[375206689,1753585843237,-460.0,0.00019452,2]
[375206690,1753585843247,-460.0,0.00019452,2]
[375206691,1753585843257,-1261.95,0.00019452,2]
[375206692,1753585843268,-462.54203478,0.00019452,2]
[375206693,1753585843277,-460.0,0.00019452,2]
[375206694,1753585843287,-460.0,0.00019452,2]
[375206695,1753585843296,-460.0,0.00019452,2]
[375206696,1753585843308,-460.0,0.00019452,2]
[375206697,1753585843317,-460.0,0.00019452,2]
[375206698,1753585843327,-466.47,0.00019452,2]
[375206699,1753585843336,-460.0,0.00019452,2]
[375206700,1753585843344,-460.0,0.00019452,2]
[375206701,1753585843353,-460.0,0.00019452,2]
[375206702,1753585843363,-558.75,0.00019452,2]
[375206703,1753585843372,-460.0,0.00019452,2]
[375206704,1753585843380,-466.26451248,0.00019452,2]
[375206705,1753585843398,-460.0,0.00019452,2]
[375206706,1753585843410,-460.0,0.00019452,2]
[375206707,1753585843419,-479.73600505,0.00019452,2]
[375206708,1753585843428,-473.11595897,0.00019452,2]
[375206709,1753585843438,-460.0,0.00019452,2]
[375206710,1753585843447,-460.0,0.00019452,2]
[375206711,1753585843457,-574.01065071,0.00019452,2]
[375206712,1753585843468,-302.18432142,0.00019452,2]
[375206713,1753585843477,-460.0,0.00019452,2]
[375206714,1753585843486,-460.0,0.00019452,2]
[375206715,1753585843496,-460.0,0.00019452,2]
[375206716,1753585843506,-460.0,0.00019452,2]
[375206717,1753585843515,-460.0,0.00019452,2]
[375206718,1753585843526,-460.0,0.00019452,2]
[375206719,1753585843536,-649.59,0.00019452,2]
[375206720,1753585843547,-460.0,0.00019452,2]
[375206721,1753585843557,-460.0,0.00019452,2]
[375206722,1753585843568,-460.0,0.00019452,2]
[375206723,1753585843579,-723.02,0.00019452,2]
[375206724,1753585843590,-460.0,0.00019452,2]
[375206725,1753585843600,-460.0,0.00019452,2]
[375206726,1753585843610,-460.0,0.00019452,2]
[375206727,1753585843620,-678.43,0.00019452,2]
[375206728,1753585843630,-460.0,0.00019452,2]
[375206729,1753585843640,-460.0,0.00019452,2]
[375206730,1753585843650,-460.0,0.00019452,2]
[375206731,1753585843661,-460.0,0.00019452,2]
[375206732,1753585843671,-460.0,0.00019452,2]
[375206733,1753585843682,-460.0,0.00019452,2]
[375206734,1753585843693,-460.0,0.00019452,2]
[375206735,1753585843703,-460.0,0.00019452,2]
[375206736,1753585843713,-460.0,0.00019452,2]
[375206737,1753585843724,-460.0,0.00019452,2]
[375206738,1753585843734,-460.0,0.00019452,2]
[375206739,1753585843744,-460.0,0.00019452,2]
[375206740,1753585843754,-460.0,0.00019452,2]
[375206741,1753585843765,-460.0,0.00019452,2]
[375206742,1753585843775,-460.0,0.00019452,2]
[375206743,1753585843785,-3087.7,0.00019452,2]
[375206744,1753585843794,-460.0,0.00019452,2]
[375206745,1753585843804,-460.0,0.00019452,2]
[375206746,1753585843814,-460.0,0.00019452,2]
[375206747,1753585843824,-460.0,0.00019452,2]
[375206748,1753585843833,-460.0,0.00019452,2]
[375206749,1753585843844,-460.0,0.00019452,2]
[375206750,1753585843854,-638.57,0.00019452,2]
[375206751,1753585843863,-460.0,0.00019452,2]
[375206752,1753585843873,-504.77,0.00019452,2]
[375206753,1753585843888,-1104.21,0.00019452,2]
[375206754,1753585843897,-460.0,0.00019452,2]
[375206755,1753585843907,-460.0,0.00019452,2]
[375206756,1753585843917,-460.0,0.00019452,2]
[375206757,1753585843929,-460.0,0.00019452,2]
[375206758,1753585843938,-460.0,0.00019452,2]
[375206759,1753585843949,-1669.01,0.00019452,2]
[375206760,1753585843960,-460.0,0.00019452,2]
[375206761,1753585843970,-460.0,0.00019452,2]
[375206762,1753585843979,-460.0,0.00019452,2]
[375206763,1753585843989,-460.0,0.00019452,2]
[375206764,1753585843999,-460.0,0.00019452,2]
[375206765,1753585844011,-460.0,0.00019452,2]
[375206766,1753585844021,-460.0,0.00019452,2]
[375206767,1753585844031,-460.0,0.00019452,2]
[375206768,1753585844041,-460.0,0.00019452,2]
[375206769,1753585844053,-460.0,0.00019452,2]
[375206770,1753585844063,-460.0,0.00019452,2]
[375206771,1753585844073,-490.9,0.00019452,2]
[375206772,1753585844088,-460.0,0.00019452,2]
[375206773,1753585844098,-460.0,0.00019452,2]
[375206774,1753585844107,-1530.09,0.00019452,2]
[375206775,1753585844117,-460.0,0.00019452,2]
[375206776,1753585844127,-460.0,0.00019452,2]
[375206777,1753585844138,-460.0,0.00019452,2]
[375206778,1753585844149,-489.58,0.00019452,2]
[375206779,1753585844160,-460.0,0.00019452,2]
[375206780,1753585844171,-460.0,0.00019452,2]
[375206781,1753585844180,-460.0,0.00019452,2]
[375206782,1753585844191,-2196.33,0.00019452,2]
[375206783,1753585844201,-460.0,0.00019452,2]
[375206784,1753585844211,-737.36,0.00019452,2]
[375206785,1753585844220,-805.96,0.00019452,2]
[375206786,1753585844230,-2999.41,0.00019452,2]
[375206787,1753585844240,-460.0,0.00019452,2]
[375206788,1753585844250,-4733.4,0.00019452,2]
[375206789,1753585844260,-460.0,0.00019452,2]
[375206790,1753585844270,-460.0,0.00019452,2]
[375206791,1753585844282,-1210.32,0.00019452,2]
[375206792,1753585844293,-460.0,0.00019452,2]
[375206793,1753585844302,-460.0,0.00019452,2]
[375206794,1753585844313,-954.16,0.00019452,2]
[375206795,1753585844324,-484.95,0.00019452,2]
[375206796,1753585844333,-336.70411929,0.00019452,2]
[375206797,1753585844344,-460.0,0.00019452,2]
[375206798,1753585844354,-787.14,0.00019452,2]
[375206799,1753585844363,-460.0,0.00019452,2]
[375206800,1753585844373,-575.17,0.00019452,2]
[375206801,1753585844382,-460.0,0.00019452,2]
[375206802,1753585844391,-460.0,0.00019452,2]
[375206803,1753585844401,-1569.82,0.00019452,2]
[375206804,1753585844410,-460.0,0.00019452,2]
[375206805,1753585844420,-460.0,0.00019452,2]
[375206806,1753585844430,-460.0,0.00019452,2]
[375206807,1753585844439,-460.0,0.00019452,2]
[375206808,1753585844448,-734.37,0.00019452,2]
[375206809,1753585844457,-463.61750273,0.00019452,2]
[375206810,1753585844467,-460.0,0.00019452,2]
[375206811,1753585844476,-460.0,0.00019452,2]
[375206812,1753585844486,-460.0,0.00019452,2]
[375206813,1753585844495,-460.0,0.00019452,2]
[375206814,1753585844504,-460.0,0.00019452,2]
[375206815,1753585844513,-448.79676513,0.00019452,2]
[375206816,1753585844523,-460.0,0.00019452,2]
[375206817,1753585844532,-1236.04,0.00019452,2]
[375206818,1753585844543,-516.98,0.00019452,2]
[375206819,1753585844553,-480.11,0.00019452,2]
[375206820,1753585844562,-460.0,0.00019452,2]
[375206821,1753585844571,-1693.74,0.00019452,2]
[375206822,1753585844580,-460.0,0.00019452,2]
[375206823,1753585844590,-460.0,0.00019452,2]
[375206824,1753585844599,-460.0,0.00019452,2]
[375206825,1753585844609,-1149.26,0.00019452,2]
[375206826,1753585844618,-460.0,0.00019452,2]
[375206827,1753585844627,-460.0,0.00019452,2]
[375206828,1753585844636,-487.79,0.00019452,2]
[375206829,1753585844645,-460.0,0.00019452,2]
[375206830,1753585844655,-460.0,0.00019452,2]
[375206831,1753585844664,-2674.55,0.00019452,2]
[375206832,1753585844673,-500.0,0.00019452,2]
[375206833,1753585844683,-460.0,0.00019452,2]
[375206834,1753585844692,-460.0,0.00019452,2]
[375206835,1753585844701,-460.0,0.00019452,2]
[375206836,1753585844710,-568.35,0.00019452,2]
[375206837,1753585844719,-460.0,0.00019452,2]
[375206838,1753585844729,-518.03,0.00019452,2]
[375206839,1753585844738,-460.0,0.00019452,2]
[375206840,1753585844747,-460.0,0.00019452,2]
[375206841,1753585844756,-460.0,0.00019452,2]
[375206842,1753585844765,-460.0,0.00019452,2]
[375206843,1753585844774,-460.0,0.00019452,2]
[375206844,1753585844784,-550.99,0.00019452,2]
[375206845,1753585844793,-460.0,0.00019452,2]
[375206846,1753585844802,-476.13,0.00019452,2]
[375206847,1753585844811,-1553.97,0.00019452,2]
[375206848,1753585844821,-687.76,0.00019452,2]
[375206849,1753585844831,-460.0,0.00019452,2]
[375206850,1753585844840,-460.0,0.00019452,2]
[375206851,1753585844850,-509.1,0.00019452,2]
[375206852,1753585844859,-460.0,0.00019452,2]
[375206853,1753585844868,-460.0,0.00019452,2]
[375206854,1753585844878,-492.35,0.00019452,2]
[375206855,1753585844891,-460.0,0.00019452,2]
[375206856,1753585844900,-460.0,0.00019452,2]
[375206857,1753585844909,-460.0,0.00019452,2]
[375206858,1753585844919,-500.0,0.00019473,2]
[375206859,1753585844928,-295.0,0.0001948,2]
[375206860,1753585844938,-161.23763111,0.00019626,2]
[375206861,1753585844947,-380.0,0.00019648,2]
[375206862,1753585844956,-1000.0,0.00019721,2]
[375206863,1753585844966,-1000.0,0.00019721,2]
[375206864,1753585844977,-460.0,0.00019726,2]
[375206865,1753585844986,-559.18580524,0.00019726,2]
[375206866,1753585844996,-460.0,0.00019726,2]
[375206867,1753585845006,-460.0,0.00019726,2]